fUST/lending_fUST_20240630
["ID","MTS","AMOUNT","RATE_DAILY","PERIOD"]
[330671800,1719699048688,-312.49740501,0.00017159,2]
[330671801,1719699048698,-1662.69,0.00017159,2]
[330671802,1719699048707,-500.0,0.00017159,2]
[330671803,1719699048716,-614.30249063,0.00017159,2]
[330671804,1719699048725,-500.0,0.00017159,2]
[330671805,1719699048734,-1505.92,0.00017159,2]
[330671806,1719699048744,-742.02,0.00017159,2]
[330671807,1719699048753,-500.0,0.00017159,2]
[330671808,1719699048763,-500.0,0.00017159,2]
[330671809,1719699048773,-2395.86,0.00017159,2]
[330671810,1719699048783,-500.0,0.00017159,2]
[330671811,1719699048792,-498.62426849,0.00017159,2]
[330671812,1719699048801,-502.89687144,0.00017159,2]
[330671813,1719699048811,-761.39,0.00017159,2]
[330671814,1719699048820,-507.40533053,0.00017159,2]
[330671815,1719699048829,-1206.13,0.00017159,2]
[330671816,1719699048839,-500.0,0.00017159,2]
[330671817,1719699048848,-1087.25,0.00017159,2]
[330671818,1719699048858,-1091.29,0.00017159,2]
[330671819,1719699048867,-2047.63,0.00017159,2]
[330671820,1719699048876,-736.74,0.00017159,2]
[330671821,1719699048886,-523.53,0.00017159,2]
[330671822,1719699048896,-500.0,0.00017159,2]
[330671823,1719699048906,-500.0,0.00017159,2]
[330671824,1719699048916,-1481.38,0.00017159,2]
[330671825,1719699048926,-2210.02,0.00017159,2]
[330671826,1719699048935,-500.0,0.00017159,2]
[330671827,1719699048944,-582.67,0.00017159,2]
[330671828,1719699048953,-500.0,0.00017159,2]
[330671829,1719699048963,-967.57,0.00017159,2]
[330671830,1719699048972,-4406.31,0.00017159,2]
[330671831,1719699048981,-1028.1,0.00017159,2]
[330671832,1719699048991,-2245.36,0.00017159,2]
[330671833,1719699049000,-151.0,0.00017254,2]
[330671834,1719699049009,-151.0,0.00017254,2]
[330671835,1719699049019,-151.0,0.00017254,2]
[330671836,1719699049029,-151.0,0.00017254,2]
[330671837,1719699049041,-20563.72,0.00017254,2]
[330671838,1719699049050,-500.0,0.00017254,2]
[330671839,1719699049060,-2202.79,0.00017255,2]
[330671840,1719699049070,-887.63,0.00017255,2]
[330671841,1719699049082,-17233.68,0.00017255,2]
[330671842,1719699049092,-1272.39,0.00017255,2]
[330671843,1719699049101,-500.0,0.00017255,2]
[330671844,1719699049115,-500.0,0.00017255,2]
[330671845,1719699049127,-547.22061459,0.00017255,2]
[330671846,1719699049136,-500.0,0.00017255,2]
[330671847,1719699049146,-500.0,0.00017255,2]
[330671848,1719699049155,-500.0,0.00017255,2]
[330671849,1719699049164,-1238.97,0.00017255,2]
[330671850,1719699049173,-516.11560987,0.00017255,2]
[330671851,1719699049182,-500.0,0.00017255,2]
[330671852,1719699049191,-500.0,0.00017255,2]
[330671853,1719699049201,-39.81710842,0.00017255,2]
[330671854,1719699050232,-721.54289158,0.00017255,2]
[330671855,1719699050241,-506.96907671,0.00017255,2]
[330671856,1719699050251,-810.64,0.00017255,2]
[330671857,1719699050260,-1377.1,0.00017255,2]
[330671858,1719699050269,-652.0,0.00017255,2]
[330671859,1719699050279,-14294.96,0.00017255,2]
[330671860,1719699050289,-500.0,0.00017255,2]
[330671861,1719699050298,-500.0,0.00017255,2]
[330671862,1719699050307,-500.0,0.00017255,2]
[330671863,1719699050316,-4240.76,0.00017255,2]
[330671864,1719699050326,-500.0,0.00017255,2]
[330671865,1719699050335,-2640.74,0.00017255,2]
[330671866,1719699050344,-500.0,0.00017255,2]
[330671867,1719699050353,-500.0,0.00017255,2]
[330671868,1719699050363,-1139.44,0.00017255,2]
[330671869,1719699050371,-1411.29,0.00017255,2]
[330671870,1719699050380,-1159.77,0.00017255,2]
[330671871,1719699050390,-1162.07,0.00017255,2]
[330671872,1719699050399,-594.01,0.00017255,2]
[330671873,1719699050409,-500.0,0.00017255,2]
[330671874,1719699050418,-1331.6,0.00017255,2]
[330671875,1719699050427,-500.0,0.00017255,2]
[330671876,1719699050436,-500.0,0.00017255,2]
[330671877,1719699050445,-151.0,0.00017255,2]
[330671878,1719699050455,-151.0,0.00017255,2]
[330671879,1719699050464,-500.0,0.00017255,2]
[330671880,1719699050473,-151.0,0.00017255,2]
[330671881,1719699050482,-284.76814,0.00017255,2]
[330671882,1719699050491,-2339.59,0.00017255,2]
[330671883,1719699050501,-1501.29,0.00017255,2]
[330671884,1719699050510,-500.0,0.00017255,2]
[330671885,1719699050519,-2745.91,0.00017255,2]
[330671886,1719699050528,-1654.7,0.00017255,2]
[330671887,1719699050537,-500.0,0.00017255,2]
[330671888,1719699050547,-506.58265394,0.00017255,2]
[330671889,1719699050555,-1629.35,0.00017255,2]
[330671890,1719699050565,-500.0,0.00017255,2]
[330671891,1719699050575,-502.36816493,0.00017255,2]
[330671892,1719699050583,-500.0,0.00017255,2]
[330671893,1719699050593,-963.52,0.00017255,2]
[330671894,1719699050602,-2888.37,0.00017255,2]
[330671895,1719699050613,-688.28,0.00017255,2]
[330671896,1719699050622,-500.0,0.00017255,2]
[330671897,1719699050632,-500.0,0.00017255,2]
[330671898,1719699050641,-500.0,0.00017255,2]
[330671899,1719699050650,-504.53843321,0.00017255,2]
[330671900,1719699050659,-821.26,0.00017255,2]
[330671901,1719699050668,-1569.24,0.00017255,2]
[330671902,1719699050677,-576.98,0.00017255,2]
[330671903,1719699050686,-1570.18,0.00017255,2]
[330671904,1719699050696,-1304.06,0.00017255,2]
[330671905,1719699050705,-357.10576819,0.00017255,2]
[330671906,1719699050714,-500.0,0.00017255,2]
[330671907,1719699050724,-500.0,0.00017255,2]
[330671908,1719699050733,-20779.52,0.00017255,2]
[330671909,1719699050742,-855.42,0.00017255,2]
[330671910,1719699050751,-267.73575787,0.00017255,2]
[330671911,1719699050760,-683.31,0.00017255,2]
[330671912,1719699050769,-500.0,0.00017255,2]
[330671913,1719699050779,-1619.97,0.00017255,2]
[330671914,1719699050788,-3785.75,0.00017255,2]
[330671915,1719699050798,-502.61957999,0.00017255,2]
[330671916,1719699050808,-500.0,0.00017255,2]
[330671917,1719699050817,-500.0,0.00017255,2]
[330671918,1719699050827,-504.54,0.00017255,2]
[330671919,1719699050836,-501.54955489,0.00017255,2]
[330671920,1719699050848,-500.0,0.00017255,2]
[330671921,1719699050858,-500.0,0.00017255,2]
[330671922,1719699050867,-500.0,0.00017255,2]
[330671923,1719699050877,-500.0,0.00017256,2]
[330671924,1719699050886,-500.0,0.00017256,2]
[330671925,1719699050896,-756.82,0.00017256,2]
[330671926,1719699050905,-659.1,0.00017256,2]
[330671927,1719699050914,-546.05,0.00017256,2]
[330671928,1719699050924,-181.11663272,0.00017256,2]
[330671929,1719699050933,-1263.27,0.00017256,2]
[330671930,1719699050943,-734.0,0.00017256,2]
[330671931,1719699050952,-500.0,0.00017256,2]
[330671932,1719699050962,-500.0,0.00017256,2]
[330671933,1719699050971,-500.0,0.00017256,2]
[330671934,1719699050980,-629.05078901,0.00017256,2]
[330671935,1719699050990,-741.9,0.00017256,2]
[330671936,1719699050999,-504.81661055,0.00017256,2]
[330671937,1719699051008,-500.0,0.00017256,2]
[330671938,1719699051018,-500.0,0.00017256,2]
[330671939,1719699051027,-184.32497894,0.00017256,2]
[330671940,1719699051040,-500.0,0.00017256,2]
[330671941,1719699051049,-511.28822662,0.00017256,2]
[330671942,1719699051058,-500.0,0.00017256,2]
[330671943,1719699051068,-500.0,0.00017256,2]
[330671944,1719699051078,-504.42681235,0.00017256,2]
[330671945,1719699051088,-500.0,0.00017256,2]
[330671946,1719699051097,-500.0,0.00017256,2]
[330671947,1719699051107,-500.0,0.00017256,2]
[330671948,1719699051116,-500.0,0.00017256,2]
[330671949,1719699051126,-608.80571108,0.00017256,2]
[330671950,1719699051135,-500.0,0.00017256,2]
[330671951,1719699051144,-502.97596274,0.00017256,2]
[330671952,1719699051154,-502.0967941,0.00017256,2]
[330671953,1719699051163,-500.0,0.00017256,2]
[330671954,1719699051172,-260.43798097,0.00017256,2]
[330671955,1719699051181,-635.48,0.00017256,2]
[330671956,1719699051191,-500.0,0.00017256,2]
[330671957,1719699051200,-502.30739428,0.00017256,2]
[330671958,1719699051210,-500.0,0.00017256,2]
[330671959,1719699051219,-503.79568185,0.00017256,2]
[330671960,1719699051229,-845.62,0.00017256,2]
[330671961,1719699051238,-502.75333421,0.00017256,2]
[330671962,1719699051247,-181.27441959,0.00017256,2]
[330671963,1719699051256,-1110.09,0.00017256,2]
[330671964,1719699051266,-581.46,0.00017256,2]
[330671965,1719699051275,-500.0,0.00017256,2]
[330671966,1719699051284,-500.0,0.00017256,2]
[330671967,1719699051293,-500.0,0.00017256,2]
[330671968,1719699051302,-500.0,0.00017256,2]
[330671969,1719699051311,-630.0,0.00017256,2]
[330671970,1719699051412,-550.62,0.00017256,2]
[330671971,1719699051422,-500.0,0.00017256,2]
[330671972,1719699051432,-500.0,0.00017256,2]
[330671973,1719699051441,-500.0,0.00017256,2]
[330671974,1719699051450,-500.0,0.00017256,2]
[330671975,1719699051459,-503.2219347,0.00017256,2]
[330671976,1719699051468,-500.0,0.00017256,2]
[330671977,1719699051478,-500.0,0.00017256,2]
[330671978,1719699051487,-826.82,0.00017256,2]
[330671979,1719699051496,-1497.77,0.00017256,2]
[330671980,1719699051505,-500.0,0.00017256,2]
[330671981,1719699051515,-500.0,0.00017256,2]
[330671982,1719699051524,-500.0,0.00017256,2]
[330671983,1719699051533,-503.78135278,0.00017256,2]
[330671984,1719699051542,-500.0,0.00017256,2]
[330671985,1719699051552,-500.0,0.00017256,2]
[330671986,1719699051561,-500.0,0.00017256,2]
[330671987,1719699051571,-500.0,0.00017256,2]
[330671988,1719699051582,-500.0,0.00017256,2]
[330671989,1719699051591,-264.7803728,0.00017256,2]
[330671990,1719699051600,-949.09,0.00017256,2]
[330671991,1719699051610,-500.0,0.00017256,2]
[330671992,1719699051619,-504.10739124,0.00017256,2]
[330671993,1719699051629,-500.0,0.00017256,2]
[330671994,1719699051640,-500.0,0.00017256,2]
[330671995,1719699051649,-515.0,0.00017256,2]
[330671996,1719699051658,-587.37,0.00017256,2]
[330671997,1719699051667,-652.27,0.00017256,2]
[330671998,1719699051676,-151.0,0.00017256,2]
[330671999,1719699051685,-500.0,0.00017256,2]
[330672000,1719699051694,-500.0,0.00017256,2]
[330672001,1719699051703,-1988.65,0.00017256,2]
[330672002,1719699051712,-503.11554374,0.00017256,2]
[330672003,1719699051721,-500.0,0.00017256,2]
[330672004,1719699051730,-500.0,0.00017256,2]
[330672005,1719699051739,-171.77543307,0.00017256,2]
[330672006,1719699051749,-500.0,0.00017256,2]
[330672007,1719699051759,-500.0,0.00017256,2]
[330672008,1719699051770,-500.0,0.00017256,2]
[330672009,1719699051780,-500.0,0.00017256,2]
[330672010,1719699051790,-500.0,0.00017256,2]
[330672011,1719699051799,-500.0,0.00017256,2]
[330672012,1719699051808,-505.8715944,0.00017256,2]
[330672013,1719699051817,-500.0,0.00017256,2]
[330672014,1719699051826,-500.0,0.00017256,2]
[330672015,1719699051836,-500.0,0.00017256,2]
[330672016,1719699051844,-500.0,0.00017256,2]
[330672017,1719699051853,-1799.77,0.00017256,2]
[330672018,1719699051863,-500.0,0.00017256,2]
[330672019,1719699051872,-1000.0,0.00017256,2]
[330672020,1719699051881,-500.0,0.00017256,2]
[330672021,1719699051890,-988.61,0.00017256,2]
[330672022,1719699051900,-500.0,0.00017256,2]
[330672023,1719699051909,-500.0,0.00017256,2]
[330672024,1719699051918,-500.0,0.00017256,2]
[330672025,1719699051928,-500.0,0.00017256,2]
[330672026,1719699051937,-500.0,0.00017256,2]
[330672027,1719699051946,-500.0,0.00017256,2]
[330672028,1719699051955,-661.56,0.00017256,2]
[330672029,1719699051964,-500.0,0.00017256,2]
[330672030,1719699051974,-819.11,0.00017256,2]
[330672031,1719699051983,-500.0,0.00017256,2]
[330672032,1719699051993,-500.0,0.00017256,2]
[330672033,1719699052002,-2110.19,0.00017256,2]
[330672034,1719699052011,-507.01202653,0.00017256,2]
[330672035,1719699052020,-500.0,0.00017256,2]
[330672036,1719699052033,-500.0,0.00017256,2]
[330672037,1719699052042,-500.0,0.00017256,2]
[330672038,1719699052052,-500.0,0.00017256,2]
[330672039,1719699052061,-500.0,0.00017256,2]
[330672040,1719699052071,-609.70960193,0.00017256,2]
[330672041,1719699052080,-500.0,0.00017256,2]
[330672042,1719699052089,-500.0,0.00017256,2]
[330672043,1719699052099,-500.0,0.00017256,2]
[330672044,1719699052112,-500.0,0.00017256,2]
[330672045,1719699052121,-500.0,0.00017256,2]
[330672046,1719699052130,-413.82440096,0.00017256,2]
[330672047,1719699052139,-566.87,0.00017256,2]
[330672048,1719699052149,-500.0,0.00017256,2]
[330672049,1719699052158,-500.0,0.00017256,2]
[330672050,1719699052168,-500.0,0.00017256,2]
[330672051,1719699052177,-500.0,0.00017256,2]
[330672052,1719699052186,-500.0,0.00017256,2]
[330672053,1719699052195,-590.43,0.00017256,2]
[330672054,1719699052205,-500.0,0.00017256,2]
[330672055,1719699052214,-500.0,0.00017256,2]
[330672056,1719699052224,-500.0,0.00017256,2]
[330672057,1719699052233,-500.0,0.00017256,2]
[330672058,1719699052242,-500.0,0.00017256,2]
[330672059,1719699052251,-500.0,0.00017256,2]
[330672060,1719699052260,-1492.89,0.00017256,2]
[330672061,1719699052270,-503.14891708,0.00017256,2]
[330672062,1719699052279,-500.0,0.00017256,2]
[330672063,1719699052289,-500.0,0.00017256,2]
[330672064,1719699052298,-553.36,0.00017256,2]
[330672065,1719699052307,-500.0,0.00017256,2]
[330672066,1719699052316,-833.43,0.00017256,2]
[330672067,1719699052325,-500.0,0.00017256,2]
[330672068,1719699052338,-500.0,0.00017256,2]
[330672069,1719699052346,-523.64,0.00017256,2]
[330672070,1719699052357,-500.0,0.00017256,2]
[330672071,1719699052366,-419.20600377,0.00017256,2]
[330672072,1719699052375,-766.15,0.00017256,2]
[330672073,1719699052384,-500.0,0.00017256,2]
[330672074,1719699052393,-574.69,0.00017256,2]
[330672075,1719699052402,-500.0,0.00017256,2]
[330672076,1719699052411,-500.0,0.00017256,2]
[330672077,1719699052419,-500.0,0.00017256,2]
[330672078,1719699052428,-500.0,0.00017256,2]
[330672079,1719699052437,-503.32619059,0.00017256,2]
[330672080,1719699052447,-1390.35,0.00017256,2]
[330672081,1719699052456,-500.0,0.00017256,2]
[330672082,1719699052466,-533.17,0.00017256,2]
[330672083,1719699052474,-500.0,0.00017256,2]
[330672084,1719699052483,-500.0,0.00017256,2]
[330672085,1719699052493,-500.0,0.00017256,2]
[330672086,1719699052502,-500.0,0.00017256,2]
[330672087,1719699052510,-729.49,0.00017256,2]
[330672088,1719699052519,-500.0,0.00017256,2]
[330672089,1719699052528,-500.0,0.00017256,2]
[330672090,1719699052537,-535.19,0.00017256,2]
[330672091,1719699052547,-314.71199988,0.00017256,2]
[330672092,1719699052556,-500.0,0.00017256,2]
[330672093,1719699052566,-500.0,0.00017256,2]
[330672094,1719699052575,-500.0,0.00017256,2]
[330672095,1719699052587,-500.0,0.00017256,2]
[330672096,1719699052596,-500.0,0.00017256,2]
[330672097,1719699052605,-1048.17,0.00017256,2]
[330672098,1719699052615,-2731.81,0.00017256,2]
[330672099,1719699052624,-500.0,0.00017256,2]
[330672100,1719699052633,-500.0,0.00017256,2]
[330672101,1719699052643,-500.0,0.00017256,2]
[330672102,1719699052652,-500.0,0.00017256,2]
[330672103,1719699052662,-721.26,0.00017256,2]
[330672104,1719699052672,-618.84,0.00017256,2]
[330672105,1719699052682,-500.0,0.00017256,2]
[330672106,1719699052691,-503.78651741,0.00017258,2]
[330672107,1719699052700,-397.72808017,0.00017258,2]
[330672108,1719699052710,-500.0,0.00017258,2]
[330672109,1719699052719,-500.0,0.00017258,2]
[330672110,1719699052728,-500.0,0.00017258,2]
[330672111,1719699052810,-504.98606072,0.00017258,2]
[330672112,1719699052829,-501.96270026,0.00017258,2]
[330672113,1719699052839,-504.4075941,0.00017258,2]
[330672114,1719699052849,-488.81891449,0.00017258,2]
[330672115,1719699052858,-504.10878318,0.00017258,2]
[330672116,1719699052867,-500.0,0.00017258,2]
[330672117,1719699052877,-500.0,0.00017258,2]
[330672118,1719699052886,-500.0,0.00017258,2]
[330672119,1719699052896,-500.0,0.00017258,2]
[330672120,1719699052906,-500.0,0.00017258,2]
[330672121,1719699052915,-500.0,0.00017258,2]
[330672122,1719699052925,-515.6,0.00017258,2]
[330672123,1719699052934,-544.24,0.00017258,2]
[330672124,1719699052943,-500.0,0.00017258,2]
[330672125,1719699052953,-778.05,0.00017258,2]
[330672126,1719699052962,-500.0,0.00017258,2]
[330672127,1719699052972,-529.00221487,0.00017259,2]
[330672128,1719699052981,-618.53,0.00017259,2]
[330672129,1719699052991,-500.0,0.00017259,2]
[330672130,1719699053000,-500.0,0.00017259,2]
[330672131,1719699053010,-724.22,0.0001726,2]
[330672132,1719699053019,-1831.08,0.0001726,2]
[330672133,1719699053030,-500.0,0.0001726,2]
[330672134,1719699053041,-500.0,0.0001726,2]
[330672135,1719699053050,-3226.28,0.0001726,2]
[330672136,1719699053060,-500.0,0.0001726,2]
[330672137,1719699053069,-436.54304068,0.0001726,2]
[330672138,1719699053079,-500.0,0.0001726,2]
[330672139,1719699053088,-500.0,0.0001726,2]
[330672140,1719699053098,-500.0,0.0001726,2]
[330672141,1719699053107,-500.0,0.0001726,2]
[330672142,1719699053116,-977.21,0.0001726,2]
[330672143,1719699053126,-500.0,0.0001726,2]
[330672144,1719699053136,-151.0,0.0001726,2]
[330672145,1719699053146,-500.0,0.0001726,2]
[330672146,1719699053155,-500.0,0.0001726,2]
[330672147,1719699053164,-500.0,0.0001726,2]
[330672148,1719699053174,-500.0,0.0001726,2]
[330672149,1719699053183,-597.31031866,0.0001726,2]
[330672150,1719699053193,-500.0,0.0001726,2]
[330672151,1719699053202,-500.0,0.0001726,2]
[330672152,1719699053211,-653.08,0.0001726,2]
[330672153,1719699053220,-1169.84,0.0001726,2]
[330672154,1719699053229,-500.0,0.0001726,2]
[330672155,1719699053238,-2271.06,0.0001726,2]
[330672156,1719699053248,-500.0,0.0001726,2]
[330672157,1719699053257,-906.0,0.0001726,2]
[330672158,1719699053267,-955.63,0.0001726,2]
[330672159,1719699053276,-2823.72,0.0001726,2]
[330672160,1719699053286,-505.82315576,0.0001726,2]
[330672161,1719699053295,-500.0,0.0001726,2]
[330672162,1719699053304,-568.51,0.0001726,2]
[330672163,1719699053313,-654.44,0.0001726,2]
[330672164,1719699053322,-1586.14,0.0001726,2]
[330672165,1719699053332,-500.0,0.0001726,2]
[330672166,1719699053341,-500.0,0.0001726,2]
[330672167,1719699053351,-29021.15,0.0001726,2]
[330672168,1719699053360,-500.0,0.0001726,2]
[330672169,1719699053369,-2054.88,0.0001726,2]
[330672170,1719699053379,-533.88,0.0001726,2]
[330672171,1719699053389,-886.5,0.0001726,2]
[330672172,1719699053398,-240.821,0.00017281,2]
[330672173,1719699053407,-600.0,0.00017291,2]
[330672174,1719699053416,-1633.13,0.00017358,2]
[330672175,1719699053426,-2759.24,0.00017358,2]
[330672176,1719699053435,-1269.33,0.00017358,2]
[330672177,1719699053444,-736.39,0.00017358,2]
[330672178,1719699053454,-909.6,0.00017358,2]
[330672179,1719699053464,-664.44,0.00017358,2]
[330672180,1719699053473,-335.95541633,0.00017358,2]
[330672181,1719699053482,-500.0,0.00017358,2]
[330672182,1719699053491,-522.3,0.00017358,2]
[330672183,1719699053500,-500.0,0.00017358,2]
[330672184,1719699053510,-702.25,0.00017358,2]
[330672185,1719699053519,-940.88,0.00017358,2]
[330672186,1719699053528,-918.11,0.00017358,2]
[330672187,1719699053538,-846.07,0.00017358,2]
[330672188,1719699053547,-2111.08,0.00017358,2]
[330672189,1719699053556,-3448.78,0.00017358,2]
[330672190,1719699053566,-12657.76,0.00017358,2]
[330672191,1719699053575,-2726.17,0.00017358,2]
[330672192,1719699053584,-630.14,0.00017361,2]
[330672193,1719699053593,-500.0,0.00017361,2]
[330672194,1719699053603,-500.0,0.00017363,2]
[330672195,1719699053614,-2156.3,0.00017363,2]
[330672196,1719699053624,-2136.16,0.00017363,2]
[330672197,1719699053633,-25835.35,0.00017363,2]
[330672198,1719699053642,-1148.33339796,0.00017468,2]
[330672199,1719699053652,-301.826708,0.000176,7]
[330672200,1719699053664,-9064.15,0.00017705,2]
[330672201,1719699053674,-555.69,0.00017705,2]
[330672202,1719699053684,-2662.87,0.00017705,2]
[330672203,1719699053694,-7045.34,0.00017705,2]
[330672204,1719699053703,-500.0,0.00017705,2]
[330672205,1719699053712,-754.08,0.00017705,2]
[330672206,1719699053722,-31469.06403691,0.00017706,2]
[330672208,1719699263582,619.42287717,0.00014999,2]
[330672209,1719699286144,481.59504744,0.00014999,2]
[330672224,1719700170252,-250.0,0.00015559,2]
[330672225,1719700170284,-428.86133952,0.00015584,2]
[330672226,1719700170329,-341.757349,0.00015584,2]
[330672242,1719700232044,-366.13027808,0.00015584,2]
[330672243,1719700232054,-8740.51584274,0.00016255,2]
[330672244,1719700232066,-258.18004786,0.00016255,2]
[330672245,1719700232162,-836.90193827,0.00016255,2]
[330672246,1719700232171,-98.77112996,0.00016507,2]
[330672247,1719700232182,-636.9375,0.00016507,2]
[330672248,1719700232193,-2583.18707641,0.00016507,2]
[330672249,1719700232203,-332.87911659,0.00016508,2]
[330672316,1719700238253,-1667.12088341,0.00016508,2]
[330672318,1719700238263,-3318.89570637,0.00016532,2]
[330672320,1719700238273,-3318.89570637,0.00016557,2]
[330672322,1719700238283,-3318.89570637,0.00016581,2]
[330672324,1719700238295,-8308.81,0.00016605,2]
[330672326,1719700238305,-509.38,0.00016605,2]
[330672327,1719700238314,-2440.97,0.00016605,2]
[330672329,1719700238324,-500.0,0.00016605,2]
[330672331,1719700238333,-500.0,0.00016605,2]
[330672333,1719700238342,-6458.22,0.00016605,2]
[330672335,1719700238351,-500.0,0.00016605,2]
[330672337,1719700238361,-3318.89570637,0.00016606,2]
[330672339,1719700238370,-691.24,0.00016606,2]
[330672340,1719700238380,-500.0,0.00016606,2]
[330672341,1719700238389,-51346.11,0.00016606,2]
[330672342,1719700238399,-6166.28,0.00016606,2]
[330672343,1719700238408,-10313.71,0.00016606,2]
[330672344,1719700238418,-3934.09,0.00016606,2]
[330672345,1719700238428,-500.0,0.00016606,2]
[330672346,1719700238437,-500.0,0.00016606,2]
[330672347,1719700238447,-500.0,0.00016606,2]
[330672348,1719700238456,-500.0,0.00016606,2]
[330672349,1719700238465,-1627.62,0.00016606,2]
[330672350,1719700238475,-620.72,0.00016606,2]
[330672351,1719700238484,-9944.3,0.00016606,2]
[330672352,1719700238498,-34729.41212551,0.00016607,7]
[330672353,1719700238508,-745.24,0.00016607,2]
[330672354,1719700238518,-500.0,0.00016607,2]
[330672355,1719700238527,-500.0,0.00016607,2]
[330672356,1719700238539,-3445.89,0.00016607,2]
[330672357,1719700238548,-1037.16,0.00016607,2]
[330672358,1719700238558,-500.0,0.00016607,2]
[330672359,1719700238568,-500.0,0.00016607,2]
[330672360,1719700238580,-839.0,0.00016607,2]
[330672361,1719700238590,-671.84,0.00016607,2]
[330672362,1719700238600,-4031.45,0.00016607,2]
[330672363,1719700238610,-500.0,0.00016607,2]
[330672364,1719700238619,-500.0,0.00016607,2]
[330672365,1719700238630,-519.69,0.00016607,2]
[330672366,1719700238639,-803.85,0.00016607,2]
[330672367,1719700238648,-500.0,0.00016607,2]
[330672368,1719700238658,-500.0,0.00016607,2]
[330672369,1719700238667,-500.0,0.00016607,2]
[330672370,1719700238677,-500.0,0.00016607,2]
[330672371,1719700238687,-500.0,0.00016607,2]
[330672372,1719700238696,-752.85,0.00016607,2]
[330672373,1719700238705,-674.06,0.00016607,2]
[330672374,1719700238715,-517.76991674,0.00016607,2]
[330672375,1719700238725,-3494.69,0.00016607,2]
[330672376,1719700238735,-4240.5,0.00016607,2]
[330672377,1719700238744,-500.0,0.00016607,2]
[330672378,1719700238755,-500.0,0.00016607,2]
[330672379,1719700238764,-9149.75,0.00016607,2]
[330672380,1719700238774,-4869.59,0.00016607,2]
[330672381,1719700238784,-500.0,0.00016607,2]
[330672382,1719700238793,-947.07,0.00016607,2]
[330672383,1719700238803,-951.74,0.00016607,2]
[330672384,1719700238812,-500.0,0.00016607,2]
[330672385,1719700238822,-832.8,0.00016607,2]
[330672386,1719700238831,-3774.93,0.00016607,2]
[330672387,1719700238841,-501.66243871,0.00016607,2]
[330672388,1719700238850,-1087.46,0.00016607,2]
[330672389,1719700238861,-500.0,0.00016607,2]
[330672390,1719700238870,-500.0,0.00016607,2]
[330672391,1719700238881,-13779.68,0.00016607,2]
[330672393,1719700238891,-312.49740501,0.00016607,2]
[330672394,1719700238900,-500.0,0.00016607,2]
[330672395,1719700238910,-1159.84,0.00016607,2]
[330672396,1719700238919,-1195.3,0.00016607,2]
[330672397,1719700238928,-1045.82,0.00016607,2]
[330672398,1719700238939,-533.2,0.00016607,2]
[330672399,1719700238948,-1593.41,0.00016607,2]
[330672400,1719700238958,-1419.66,0.00016607,2]
[330672401,1719700238968,-1443.17,0.00016607,2]
[330672402,1719700238978,-2296.04,0.00016607,2]
[330672403,1719700238987,-985.26,0.00016607,2]
[330672404,1719700238996,-1041.95,0.00016607,2]
[330672405,1719700239006,-500.0,0.00016607,2]
[330672406,1719700239016,-500.0,0.00016607,2]
[330672407,1719700239026,-500.0,0.00016607,2]